bitfinex/quotes_ETHUSD_20260114
["timestamp","ask_amount","ask_price","bid_price","bid_amount"]
[1768391533125,0.001,3285.6,3285.2,0.03043954]
[1768391533326,0.001,3285.6,3285.3,0.414]
[1768391534028,0.001,3285.6,3285.3,4.95272647]
[1768391534207,0.001,3285.6,3285.4,0.4983166]
[1768391534406,0.28103814,3285.5,3285.3,3.37430804]
[1768391534610,0.17887356,3285.4,3285.3,3.37430804]
[1768391534807,0.001,3285.6,3285.3,3.37430804]
[1768391535006,0.001,3285.6,3285.2,3.04390764]
[1768391535232,0.001,3285.6,3285.3,0.76130746]
[1768391535430,0.001,3285.6,3285.4,0.414]
[1768391536538,3.50175476,3285.9,3285.4,0.414]
[1768391538415,4.41340222,3286.0,3285.4,0.414]
[1768391540710,0.001,3285.6,3285.4,7.62633449]
[1768391540909,0.001,3285.6,3285.4,8.02178584]
[1768391541134,0.001,3285.6,3285.4,4.97802368]
[1768391542928,0.001,3285.6,3285.5,0.03043676]
[1768391543444,0.001,3285.6,3285.4,4.97802368]
[1768391544914,0.001,3285.6,3285.5,4.19900909]
[1768391545114,0.001,3285.6,3285.5,4.96031655]
[1768391545729,0.001,3285.6,3285.5,4.92987979]
[1768391546525,0.001,3286.2,3285.5,4.96031655]
[1768391547446,0.001,3286.2,3285.5,7.97346423]
[1768391548948,0.001,3286.2,3285.5,4.92987979]
[1768391549113,0.001,3286.2,3285.6,0.414]
[1768391549316,3.04402842,3286.2,3285.6,0.414]
[1768391549722,0.001,3286.2,3285.6,0.414]
[1768391550184,0.001,3286.2,3285.6,0.80945135]
[1768391552227,4.49732538,3286.1,3285.6,0.80945135]
[1768391552823,4.49732538,3286.1,3285.7,0.002]
[1768391553028,0.001,3285.9,3285.8,0.414]
[1768391555664,4.53278191,3285.9,3285.7,0.002]
[1768391555962,0.001,3285.9,3285.7,0.002]
[1768391562170,0.001,3285.9,3285.7,0.416]
[1768391563291,0.001,3285.9,3285.7,0.002]
[1768391563589,0.001,3285.9,3285.7,0.416]
[1768391565488,5.29038183,3285.9,3285.4,0.002]
[1768391565792,5.29038183,3285.9,3285.4,0.416]
[1768391567366,4.53178191,3285.8,3285.4,0.416]
[1768391568705,4.53178191,3285.8,3285.4,0.002]
[1768391568912,0.8333769,3285.7,3285.4,0.416]
[1768391570577,0.8333769,3285.7,3285.4,0.002]
[1768391570776,0.8333769,3285.7,3285.4,0.416]
[1768391572479,0.8333769,3285.7,3285.4,0.002]
[1768391572680,8.40867284,3285.7,3285.4,0.416]
[1768391572880,0.84086728,3285.6,3285.4,0.416]
[1768391575011,3.8844519,3285.6,3285.4,0.416]
[1768391576193,0.84086728,3285.6,3285.4,0.416]
[1768391576388,3.04353747,3285.7,3285.4,0.416]
[1768391576389,3.04353747,3285.7,3285.4,0.40079088]
[1768391576613,4.53178191,3285.8,3284.8,7.58417607]
[1768391576813,4.53178191,3285.8,3284.9,0.414]
[1768391577191,4.53178191,3285.8,3284.9,3.45821019]
[1768391577492,4.53178191,3285.8,3285.7,0.002]
[1768391577680,5.59372135,3285.8,3285.4,0.002]
[1768391577881,5.59372135,3285.8,3284.9,3.45821019]
[1768391579680,4.53178191,3285.6,3284.9,3.45821019]
[1768391579883,4.53178191,3285.6,3284.9,0.414]
[1768391580308,4.53178191,3285.6,3284.9,3.4582273]
[1768391580720,4.53178191,3285.6,3284.9,0.414]
[1768391581015,5.69984525,3285.6,3284.9,3.45821079]
[1768391582189,5.69984525,3285.6,3285.0,0.414]
[1768391582404,4.53178191,3285.6,3285.0,0.414]
[1768391583293,7.57522665,3285.8,3285.0,3.45809326]
[1768391583694,4.53178191,3285.7,3285.0,3.45809326]
[1768391584634,7.57531519,3285.7,3284.8,0.002]
[1768391584929,4.53178191,3285.6,3284.9,0.415]
[1768391585124,5.59366676,3285.6,3284.9,0.415]
[1768391585997,0.28075848,3285.5,3284.9,0.415]
[1768391586225,0.28075848,3285.4,3284.9,0.415]
[1768391586400,5.59366676,3285.6,3284.9,0.415]
[1768391586610,0.28074303,3285.5,3284.9,0.415]
[1768391586810,0.28074303,3285.4,3284.9,3.45918123]
[1768391587004,0.28074303,3285.3,3284.9,3.45918123]
[1768391587210,7.575386,3285.6,3284.9,3.45918123]
[1768391587412,0.28074523,3285.5,3284.9,3.45918123]
[1768391587609,0.28074523,3285.4,3284.9,3.45918123]
[1768391587924,0.28074523,3285.3,3284.9,3.45918123]
[1768391588127,4.42511194,3285.5,3284.9,3.45918123]
[1768391588324,4.70585698,3285.4,3284.9,3.45918123]
[1768391588532,0.28074504,3285.3,3284.9,3.45918123]
[1768391588733,7.46871603,3285.6,3284.9,3.45918123]
[1768391588927,0.28073858,3285.5,3284.9,3.45918123]
[1768391589235,0.28073858,3285.4,3285.2,0.002]
[1768391589438,0.28073858,3285.3,3285.2,0.002]
[1768391591011,0.28073858,3285.3,3285.2,0.417]
[1768391598768,4.42511194,3285.5,3285.2,0.417]
[1768391598942,0.28087397,3285.4,3285.2,0.417]
[1768391599147,0.28087397,3285.3,3285.2,0.417]
[1768391601066,0.28087397,3285.3,3285.2,0.002]
[1768391601366,5.16256448,3285.3,3284.9,0.002]
[1768391601574,5.16256448,3285.3,3285.0,0.415]
[1768391601575,0.28087397,3285.2,3285.0,0.415]
[1768391601750,4.41109192,3285.3,3285.0,0.415]
[1768391601751,0.28087397,3285.1,3285.0,0.415]
[1768391603639,7.45497027,3285.3,3285.0,0.415]
[1768391603839,0.28120109,3285.2,3285.0,0.415]
[1768391604039,0.28120109,3285.1,3285.0,0.415]
[1768391605447,4.69229301,3285.1,3284.9,0.417]
[1768391605763,0.28114558,3285.0,3284.9,0.417]
[1768391606284,0.28114616,3285.0,3284.9,0.417]
[1768391606489,0.28114616,3285.0,3284.9,0.002]
[1768391610289,1.05477647,3285.0,3284.9,0.002]
[1768391610797,5.46586839,3285.0,3284.9,0.002]
[1768391610993,5.46586839,3285.0,3284.8,1e-08]
[1768391611166,4.69223808,3284.9,3284.8,1e-08]
[1768391611362,0.77363031,3285.0,3284.8,1e-08]
[1768391611998,7.49070839,3285.3,3284.8,1e-08]
[1768391611999,3.0440429,3285.2,3284.8,1e-08]
[1768391612373,7.45513482,3285.2,3284.8,1e-08]
[1768391612883,4.41109192,3285.1,3284.8,1e-08]
[1768391613385,4.41109192,3285.1,3284.9,0.002]
[1768391613701,4.41109192,3285.1,3284.8,1e-08]
[1768391613883,1.04991383,3285.0,3284.8,1e-08]
[1768391614084,1.04991383,3285.0,3284.5,0.002]
[1768391614085,5.46100575,3285.0,3284.6,0.415]
[1768391614296,7.45532462,3284.9,3284.6,0.415]
[1768391614496,7.45532462,3284.9,3284.5,0.002]
[1768391614792,8.61026701,3284.9,3284.6,0.415]
[1768391614992,4.41109192,3284.8,3284.5,0.002]
[1768391615368,4.19917509,3284.9,3284.0,0.002]
[1768391615369,4.55403465,3284.6,3284.0,0.002]
[1768391615587,4.55403465,3284.6,3284.1,0.415]
[1768391616376,7.59863809,3284.5,3284.1,0.415]
[1768391617182,7.59863809,3284.5,3284.0,0.002]
[1768391617386,7.59863809,3284.5,3284.1,0.415]
[1768391618180,12.15223725,3284.5,3284.1,0.415]
[1768391618567,12.15223725,3284.5,3283.7,0.002]
[1768391618568,0.03887094,3284.1,3283.7,0.002]
[1768391619004,4.59290559,3284.1,3283.7,0.002]
[1768391619803,0.03887094,3284.1,3283.7,0.002]
[1768391621010,3.0838548,3284.1,3283.7,0.002]
[1768391621234,0.03887094,3284.1,3283.7,0.002]
[1768391622800,3.08386563,3284.1,3283.7,0.417]
[1768391624932,0.03887094,3284.1,3283.7,4.78438049]
[1768391625095,0.03887094,3284.1,3283.7,7.82972146]
[1768391625295,0.03887094,3284.1,3284.0,0.002]
[1768391625726,4.96003465,3284.8,3284.0,4.36938049]
[1768391625932,7.59836783,3284.8,3284.1,4.78238049]
[1768391626139,7.59836783,3284.8,3284.1,4.36738049]
[1768391626437,7.59836783,3284.8,3284.1,4.78238049]
[1768391627010,7.59836783,3284.8,3284.2,3.04488155]
[1768391628654,6.0879094,3285.2,3284.3,4.36738049]
[1768391628822,4.55403465,3285.1,3284.3,4.36738049]
[1768391629027,4.55403465,3285.1,3284.4,0.415]
[1768391629668,4.55403465,3284.5,3283.7,0.002]
[1768391629955,4.55403465,3284.5,3283.8,3.04518645]
[1768391630346,4.55403465,3284.5,3283.7,7.41466694]
[1768391630543,4.55403465,3284.5,3283.8,3.04523833]
[1768391630743,7.59867067,3284.5,3283.8,3.04525245]
[1768391631451,3.04463602,3284.5,3283.8,7.41263294]
[1768391631661,3.04463602,3284.5,3283.9,4.36738049]
[1768391632879,3.04451408,3284.6,3284.0,4.36738049]
[1768391633228,6.08902816,3284.6,3284.0,4.36738049]
[1768391633537,3.04451408,3284.6,3284.0,4.36738049]
[1768391633931,6.08902816,3284.6,3284.0,4.36738049]
[1768391634381,3.04444513,3284.7,3284.0,4.36738049]
[1768391634579,4.55403465,3284.9,3284.0,4.36738049]
[1768391634580,3.04429669,3284.9,3284.2,4.36738049]
[1768391634737,3.0439547,3285.2,3284.3,4.36738049]
[1768391634933,6.0879094,3285.2,3284.3,4.36738049]
[1768391635152,7.19280381,3285.2,3284.3,4.36738049]
[1768391635456,4.55403465,3285.1,3284.2,7.41218998]
[1768391638490,0.001,3284.8,3284.2,7.41218998]
[1768391640558,7.59936002,3284.8,3284.2,3.04480949]
[1768391640886,4.55403465,3284.7,3284.1,3.45995106]
[1768391641476,0.001,3284.8,3284.1,3.45995106]
[1768391642291,0.001,3284.8,3284.1,6.50492532]
[1768391642486,0.001,3284.8,3284.3,7.41216933]
[1768391642789,0.001,3284.8,3284.4,4.36738049]
[1768391644606,0.001,3284.8,3284.6,4.36738049]
[1768391647008,0.001,3284.8,3284.4,4.3926146]
[1768391647377,0.001,3284.8,3284.4,7.43730638]
[1768391647577,0.001,3284.8,3284.4,3.04469178]
[1768391648205,0.001,3284.8,3284.2,7.43744146]
[1768391648502,0.001,3284.8,3284.2,4.8076146]
[1768391648704,0.001,3284.8,3284.3,3.04478884]
[1768391649106,4.35020616,3284.7,3283.9,4.8076146]
[1768391649312,4.35020616,3284.7,3284.0,7.43762011]
[1768391650175,4.35020616,3284.7,3283.9,3.46012314]
[1768391650607,0.001,3284.5,3283.9,3.04512314]
[1768391650817,0.001,3284.5,3283.8,3.46020596]
[1768391650818,4.35120616,3284.5,3283.8,3.46020596]
[1768391651217,4.35020616,3284.3,3283.7,0.002]
[1768391652699,4.35020616,3284.1,3283.7,0.002]
[1768391654403,3.04488155,3284.2,3283.7,0.002]
[1768391655931,6.0897631,3284.2,3283.7,0.002]
[1768391656141,1.04399693,3284.1,3283.7,0.002]
[1768391657002,4.08900901,3284.1,3283.7,0.002]
[1768391658254,11.48422725,3284.1,3283.7,0.002]
[1768391659364,4.35020616,3284.0,3283.7,0.002]
[1768391661244,7.39535093,3284.0,3283.7,0.002]
[1768391661459,1.14843599,3283.9,3283.7,0.002]
[1768391663438,3.04525245,3283.8,3283.7,0.002]
[1768391663780,1.14843599,3283.9,3283.7,0.002]
[1768391663956,3.04497426,3284.1,3283.7,0.002]
[1768391665163,6.08994852,3284.1,3283.7,0.002]
[1768391665464,10.44864679,3284.1,3283.7,0.002]
[1768391668143,10.44864679,3284.1,3283.6,1e-08]
[1768391668144,4.35869827,3284.0,3283.6,1e-08]
[1768391668864,6.08994852,3284.1,3283.1,3.04785335]
[1768391668865,4.35869827,3283.8,3283.1,0.002]
[1768391669065,4.35869827,3283.6,3283.1,0.002]
[1768391671138,4.35869827,3283.4,3283.1,0.002]
[1768391671367,4.35869827,3283.4,3282.5,6.09291698]
[1768391671368,4.35869827,3283.4,3282.5,3.04645849]
[1768391673450,4.35869827,3283.2,3282.5,3.04645849]
[1768391673683,5.40370713,3283.2,3282.5,3.04645849]
[1768391673915,4.35869827,3283.0,3282.3,0.002]
[1768391674370,4.35869827,3283.0,3282.1,4.30181616]
[1768391674371,4.35869827,3283.0,3282.0,0.002]
[1768391674568,4.35869827,3282.8,3282.0,0.002]
[1768391674790,0.09180629,3282.9,3282.0,0.002]
[1768391674791,4.35869827,3282.6,3282.0,0.002]
[1768391675100,5.81070713,3283.2,3282.4,7.34833923]
[1768391675268,1.04500886,3283.2,3282.8,0.002]
[1768391675796,4.09081856,3283.2,3282.8,0.002]
[1768391675997,7.13662826,3283.2,3282.8,0.002]
[1768391676199,4.27707382,3283.1,3282.8,0.002]
[1768391676387,5.41844403,3283.0,3282.8,0.002]
[1768391676582,4.27707382,3282.9,3282.8,0.002]
[1768391677501,1.14137021,3283.0,3282.8,0.002]
[1768391677912,0.407,3283.1,3282.8,0.002]
[1768391678082,4.68407382,3283.3,3282.8,0.002]
[1768391678284,0.407,3283.3,3282.8,0.002]
[1768391678523,0.407,3283.3,3282.8,4.25033409]
[1768391679774,0.407,3283.3,3282.8,7.296498]
[1768391680417,5.15176032,3284.0,3282.9,4.24833409]
[1768391680418,3.04545273,3283.6,3282.9,4.24833409]
[1768391680717,0.30454527,3283.5,3282.9,4.24833409]
[1768391681018,0.407,3283.6,3282.9,4.24833409]
[1768391681607,0.407,3283.6,3283.1,4.24833409]
[1768391683529,0.407,3283.6,3283.0,3.04599451]
[1768391683737,0.407,3283.6,3282.9,3.04608098]
[1768391684031,3.4524395,3283.6,3282.9,3.04608098]
[1768391684230,4.22539083,3283.6,3283.0,4.24833409]
[1768391684631,4.22539083,3283.6,3282.9,3.04608098]
[1768391684632,4.27707382,3283.5,3282.9,3.04608098]
[1768391685320,1.17995133,3283.6,3282.9,10.34050237]
[1768391685926,4.22539546,3283.6,3282.9,10.34050237]
[1768391686138,4.22539546,3283.6,3282.9,7.29441507]
[1768391687340,0.85024693,3283.5,3282.9,7.29441507]
[1768391687535,0.001,3283.2,3282.9,7.29441507]
[1768391689357,0.001,3283.2,3282.9,3.04608098]
[1768391689553,0.001,3283.2,3282.8,3.04814019]
[1768391689854,0.001,3283.2,3282.8,3.04817761]
[1768391690056,5.1128812,3283.2,3282.5,0.002]
[1768391690238,4.27707382,3283.0,3282.5,0.002]
[1768391690958,4.27807382,3284.5,3283.5,4.24833409]
[1768391691179,4.27807382,3284.5,3283.4,0.415]
[1768391691180,4.27707382,3284.3,3283.4,0.415]
[1768391691326,4.27707382,3284.1,3283.1,4.66333409]
[1768391691524,4.27707382,3284.1,3283.1,4.24833409]
[1768391692074,1.12846435,3284.2,3282.8,4.24833409]
[1768391692075,4.36888011,3283.8,3282.8,4.24833409]
[1768391692228,3.04534518,3283.7,3282.9,7.29442139]
[1768391692868,6.09069036,3283.7,3282.9,4.24833409]
[1768391693050,1.04595705,3283.6,3282.9,4.24833409]
[1768391693350,1.45295705,3283.6,3282.9,4.24833409]
[1768391693727,5.73003087,3283.6,3282.8,3.04615065]
[1768391693971,4.27707382,3283.5,3282.8,3.04615065]
[1768391694730,4.27707382,3283.4,3282.6,3.04634534]
[1768391695059,3.04561701,3283.5,3282.6,3.04634534]
[1768391695060,5.0093429,3283.3,3282.6,3.04634534]
[1768391695262,4.27707382,3283.3,3282.6,3.04634534]
[1768391695763,4.27707382,3283.3,3282.6,6.09271102]
[1768391695963,3.04520228,3283.9,3282.6,6.09271102]
[1768391695964,4.27807382,3284.5,3283.3,4.24833409]
[1768391696197,0.09180629,3284.1,3283.3,4.29163195]
[1768391696700,0.09180629,3284.2,3283.4,6.09124686]
[1768391696901,0.88304454,3284.2,3283.4,10.33958095]
[1768391698063,0.09180629,3284.0,3283.4,10.33958095]
[1768391698275,4.36888011,3284.0,3283.4,6.09124686]
[1768391698776,4.36888011,3284.0,3283.1,13.38603928]
[1768391699578,3.04561677,3284.5,3283.1,13.38603928]
[1768391699579,0.001,3284.5,3284.0,4.24833409]
[1768391699777,0.001,3284.5,3283.7,4.24833409]
[1768391699993,0.001,3283.8,3283.7,4.66333409]
[1768391700193,0.001,3284.5,3283.7,4.66333409]
[1768391700912,0.001,3284.5,3283.8,6.0905049]
[1768391701090,4.71506183,3284.5,3283.8,6.0905049]
[1768391701517,0.407,3284.4,3283.7,6.09066499]
[1768391701987,0.84498801,3284.5,3283.7,6.09066499]
[1768391702188,0.001,3284.5,3283.8,4.24833409]
[1768391703092,0.001,3284.5,3283.9,10.33865351]
[1768391703712,0.001,3284.5,3283.9,6.09031942]
[1768391704322,0.001,3284.5,3283.7,7.2936539]
[1768391704500,0.001,3284.5,3283.8,4.24833409]
[1768391704702,4.68507382,3284.8,3283.8,4.24833409]
[1768391704703,0.001,3284.8,3284.2,4.24833409]
[1768391705797,0.407,3285.4,3284.7,4.65784945]
[1768391706016,4.68544418,3285.9,3284.7,4.65784945]
[1768391706315,4.68544418,3285.9,3284.9,4.65784945]
[1768391706316,0.001,3285.9,3284.9,4.65784945]
[1768391706518,0.46854442,3285.8,3284.9,4.65784945]
[1768391708014,0.408,3285.9,3284.9,4.65784945]
[1768391708232,0.001,3285.9,3284.9,4.65784945]
[1768391708530,0.001,3285.9,3285.1,4.65784945]
[1768391708531,0.408,3285.9,3285.1,4.65784945]
[1768391708820,0.001,3285.9,3285.1,4.65784945]
[1768391708990,0.408,3285.9,3285.1,4.65784945]
[1768391709197,0.001,3285.9,3285.1,4.65784945]
[1768391710029,0.001,3285.9,3285.2,4.65784945]
[1768391710390,0.001,3285.9,3285.4,4.65784945]
[1768391711528,0.001,3285.9,3284.8,4.65784945]
[1768391711730,4.68544418,3285.9,3285.2,3.04393754]
[1768391711893,1.11789513,3285.8,3285.2,6.08789224]
[1768391712087,0.407,3285.8,3285.2,6.08789224]
[1768391712522,0.001,3285.9,3285.2,6.08789224]
[1768391712821,0.001,3285.6,3285.3,4.65784945]
[1768391714417,0.001,3285.9,3285.3,4.65784945]
[1768391714726,0.001,3285.9,3285.4,10.74538825]
[1768391715602,0.001,3285.9,3285.4,3.0437694]
[1768391716426,0.001,3285.9,3285.4,7.70161885]
[1768391716600,0.001,3285.9,3285.4,10.74538825]
[1768391716926,0.001,3285.9,3285.5,4.65784945]
[1768391717129,0.001,3285.9,3285.6,3.04358412]
[1768391717626,0.001,3285.9,3285.4,3.04373673]
[1768391717926,0.001,3285.9,3285.5,3.04366676]
[1768391719133,0.001,3285.9,3285.4,3.04376737]
[1768391719721,0.001,3285.9,3285.3,3.04383111]
[1768391720697,0.001,3285.9,3285.3,6.08769316]
[1768391721601,0.001,3285.9,3285.3,4.54865955]
[1768391723817,0.001,3285.9,3285.4,7.59242895]
[1768391724019,0.001,3285.9,3285.4,3.0437694]
[1768391724715,0.001,3285.9,3285.4,6.0875388]
[1768391724925,0.001,3285.9,3285.4,3.0437694]
[1768391725126,0.001,3285.9,3285.6,0.002]
[1768391727129,0.001,3285.9,3285.6,4.55065955]
[1768391727344,0.001,3285.9,3285.7,5.04522551]
[1768391727553,0.001,3286.2,3285.7,5.04522551]
[1768391728141,0.001,3286.2,3285.8,10.63545727]
[1768391729009,0.001,3286.2,3285.8,6.08679772]
[1768391729533,3.44969524,3286.6,3285.8,6.08679772]
[1768391729534,0.407,3286.6,3285.8,6.08679772]
[1768391729745,4.46621267,3286.5,3285.8,6.08679772]
[1768391730154,0.407,3286.6,3285.8,6.08679772]
[1768391730548,4.46621267,3286.6,3285.8,6.08679772]
[1768391732266,4.46621267,3286.6,3285.8,9.13019658]
[1768391732460,4.46621267,3286.6,3285.9,0.03043306]
[1768391732659,4.46621267,3286.6,3286.0,0.91606296]
[1768391733029,3.0423825,3286.9,3286.0,5.46472251]
[1768391733329,7.50859517,3286.9,3286.0,5.46472251]
[1768391733528,0.407,3287.0,3286.0,5.46472251]
[1768391733739,7.50841498,3287.1,3286.0,5.46472251]
[1768391733940,0.407,3287.0,3286.1,5.13967511]
[1768391734353,3.44929497,3287.0,3286.2,6.08605684]
[1768391734722,7.91550764,3287.0,3286.2,6.08605684]
[1768391735139,7.91550764,3287.0,3286.2,3.04302842]
[1768391735535,7.91550764,3287.0,3286.2,6.08605684]
[1768391735733,7.91550764,3287.0,3286.2,6.80336075]
[1768391736459,4.62868339,3286.7,3285.6,0.417]
[1768391736638,4.62868339,3286.7,3286.2,3.0430172]
[1768391737243,4.62868339,3286.7,3286.1,3.04307907]
[1768391737564,4.62868339,3286.7,3285.6,3.46053539]
[1768391737565,4.62868339,3286.7,3286.0,3.04318638]
[1768391737927,4.62968339,3286.8,3286.0,3.65184256]
[1768391738131,0.001,3286.8,3286.1,4.57600134]
[1768391738330,3.04347292,3286.8,3286.0,3.65184256]
[1768391739361,3.04347292,3286.8,3286.0,8.2278439]
[1768391739856,3.04347292,3286.8,3286.1,3.04312102]
[1768391740034,4.62968339,3286.8,3286.1,7.21333853]
[1768391740235,0.001,3286.8,3286.1,7.21333853]
[1768391741440,4.62968339,3286.8,3286.1,7.21333853]
[1768391741846,4.62868339,3287.3,3286.4,4.44538508]
[1768391742041,3.44995621,3287.4,3286.6,4.57600134]
[1768391742864,6.49191242,3287.4,3286.6,4.57600134]
[1768391743534,9.07406847,3287.2,3286.0,7.61913835]
[1768391743770,6.0845756,3287.0,3286.0,8.03413835]
[1768391744068,6.0845756,3287.0,3286.0,3.04318959]
[1768391744069,5.03568339,3286.9,3286.0,3.04318959]
[1768391744360,0.407,3286.9,3286.0,3.04318959]
[1768391744549,5.03568339,3286.9,3286.0,6.08640322]
[1768391745135,5.03568339,3286.9,3286.0,3.04318959]
[1768391745636,0.407,3286.8,3285.9,6.08661248]
[1768391745847,0.407,3286.8,3286.0,0.65320465]
[1768391746168,7.67113666,3286.9,3286.0,0.68363678]
[1768391746169,8.07813666,3286.9,3286.0,0.68363678]
[1768391746471,8.07813666,3286.9,3286.0,0.65320465]
[1768391746962,4.62868339,3286.8,3286.0,0.65320465]
[1768391747741,3.04256549,3286.7,3286.0,3.69633179]
[1768391747946,4.62868339,3286.6,3286.0,3.04319648]
[1768391749439,4.62968339,3286.6,3286.0,3.04319648]
[1768391749768,0.001,3286.6,3286.0,7.61919782]
[1768391750069,0.001,3286.6,3286.0,10.66241145]
[1768391750465,0.001,3286.6,3286.0,3.04319648]
[1768391750665,0.001,3286.6,3285.6,0.002]
[1768391750666,5.03568339,3286.5,3285.6,0.002]
[1768391752335,4.62868339,3286.3,3285.6,0.002]
[1768391754646,10.71474023,3286.2,3285.6,0.002]
[1768391754846,0.407,3286.1,3285.6,0.002]
[1768391755572,4.62868339,3286.0,3284.3,4.57600134]
[1768391755891,4.62868339,3286.0,3283.3,3.04564358]
[1768391755892,5.74085741,3286.0,3285.0,3.04409727]
[1768391756200,5.74085741,3286.0,3284.9,3.04421961]
[1768391756369,5.74085741,3286.0,3284.9,3.04419606]
[1768391756543,5.74085741,3286.0,3284.8,4.57600134]
[1768391756544,6.08679772,3285.8,3285.0,3.0441032]
[1768391756744,0.407,3285.7,3285.0,3.0441032]
[1768391756962,0.407,3285.7,3284.9,3.04418787]
[1768391757567,0.407,3285.7,3284.9,7.62018921]
[1768391758064,0.407,3285.7,3285.0,4.57600134]
[1768391759176,3.04358412,3285.6,3285.0,4.57600134]
[1768391759544,3.04358412,3285.6,3285.1,4.57600134]
[1768391760855,3.04358412,3285.6,3285.2,0.002]
[1768391761253,0.61478574,3285.9,3285.2,4.57800134]
[1768391761461,1.11217402,3286.0,3285.4,4.57600134]
[1768391761462,0.407,3286.0,3285.4,4.57600134]
[1768391762781,0.407,3286.0,3285.2,5.34020621]
[1768391762958,0.407,3286.0,3285.2,4.57800134]
[1768391763152,6.08661248,3285.9,3285.2,4.57800134]
[1768391764070,10.71529587,3285.9,3285.2,0.002]
[1768391765297,3.04330624,3285.9,3285.2,4.6220289]
[1768391766660,3.04330624,3285.9,3285.1,4.6200289]
[1768391766860,6.08661248,3285.9,3285.1,5.7325598]
[1768391767088,6.08661248,3285.9,3285.0,3.04414003]
[1768391767503,4.64224434,3285.8,3284.9,3.46120345]
[1768391767702,4.73405063,3285.8,3284.9,0.002]
[1768391769399,4.64224434,3285.1,3283.9,7.66717068]
[1768391769712,4.64224434,3284.9,3283.9,0.002]
[1768391770202,4.64224434,3284.9,3283.9,3.04714844]
[1768391770574,4.64224434,3284.9,3284.0,3.04504434]
[1768391770981,4.64224434,3284.9,3283.9,3.04709596]
[1768391771187,4.64224434,3284.7,3284.0,3.04505301]
[1768391771399,3.45151074,3284.6,3283.9,0.002]
[1768391773113,3.45151074,3284.6,3284.3,0.002]
[1768391774892,0.407,3284.6,3284.3,0.002]
[1768391776213,7.68669068,3284.7,3284.3,0.002]
[1768391776416,0.407,3284.5,3284.3,0.002]
[1768391781988,4.37308404,3284.3,3284.0,0.002]
[1768391782611,7.41787699,3284.3,3284.0,0.002]
[1768391784195,3.04470864,3284.4,3284.0,0.002]
[1768391784196,3.04474651,3284.4,3284.0,0.002]
[1768391785003,6.08949302,3284.4,3284.0,0.002]
[1768391785402,10.46257706,3284.4,3284.0,0.002]
[1768391785725,6.08949302,3284.4,3283.9,0.002]
[1768391787248,6.08949302,3284.4,3283.9,4.76275462]
[1768391787249,3.04474651,3284.4,3283.9,4.76275462]
[1768391787854,3.45164055,3284.5,3283.9,4.76275462]
[1768391790223,3.45164055,3284.5,3283.9,0.002]
[1768391790422,7.58321102,3284.5,3283.9,0.002]
[1768391790624,11.95629506,3284.5,3283.9,0.002]
[1768391790846,7.58321102,3284.5,3283.9,0.002]
[1768391791355,4.53857047,3284.5,3283.9,0.002]
[1768391791548,4.53857047,3284.5,3283.9,4.76275462]
[1768391792767,7.58321102,3284.5,3283.9,4.76275462]
[1768391793448,4.37308404,3284.4,3283.9,0.002]
[1768391793663,4.37308404,3284.3,3283.9,0.002]
[1768391794569,6.0897631,3284.2,3283.9,0.002]
[1768391794758,3.04488155,3284.2,3283.9,0.002]
[1768391798773,4.24034668,3284.4,3283.9,0.002]
[1768391798774,3.04478884,3284.3,3283.9,0.002]
[1768391798976,6.08957768,3284.3,3283.9,0.002]
[1768391799173,0.72852072,3284.2,3283.9,0.002]
[1768391799470,0.408,3284.1,3283.9,0.002]
[1768391800564,0.408,3284.1,3283.5,4.77620933]
[1768391801169,4.54723715,3283.9,3283.2,0.002]
[1768391804008,4.54723715,3283.7,3283.2,0.002]
[1768391804210,1.47177421,3283.6,3283.2,0.002]
[1768391804506,4.54723715,3283.5,3283.2,0.002]
[1768391805991,3.04562343,3283.4,3283.2,0.002]
[1768391806304,4.54723715,3283.3,3282.9,0.002]
[1768391807710,0.408,3283.2,3282.9,0.002]
[1768391808415,0.408,3283.4,3282.9,4.77620933]
[1768391808711,0.408,3283.5,3282.9,4.77620933]
[1768391809083,0.8191438,3283.5,3282.9,0.002]
[1768391810106,0.8191438,3283.5,3283.1,0.002]
[1768391811599,0.09180629,3284.1,3283.1,0.002]
[1768391811600,0.408,3284.1,3283.1,0.002]
[1768391811796,4.54723715,3284.0,3283.1,0.002]
[1768391812994,3.04506699,3284.0,3283.1,0.002]
[1768391813512,10.63737113,3284.0,3283.1,0.002]
[1768391813719,7.59230414,3284.0,3283.1,0.002]
[1768391813886,7.59230414,3284.0,3283.2,0.6093989]
[1768391815120,4.54723715,3283.9,3283.2,3.04576292]
[1768391815895,4.54723715,3283.9,3283.2,6.09157188]
[1768391816194,3.04506699,3284.0,3283.2,6.09157188]
[1768391816408,3.04506699,3284.0,3283.2,3.04576292]
[1768391816809,7.59230414,3284.0,3283.2,3.04576292]
[1768391817716,7.59230414,3284.0,3283.2,7.81997225]
[1768391818042,3.04506699,3284.0,3283.3,4.77420933]
[1768391819545,3.04506699,3284.0,3283.4,4.77420933]
[1768391820044,11.74190158,3284.0,3283.2,3.0457709]
[1768391820245,4.54723715,3283.9,3283.2,3.0457709]
[1768391820441,4.54723715,3283.9,3283.1,4.77620933]
[1768391820614,4.54723715,3283.9,3283.1,3.0478875]
[1768391821015,4.54723715,3283.9,3283.1,0.002]
[1768391821212,1.17419016,3283.8,3283.1,0.002]
[1768391821411,0.408,3283.7,3283.1,4.77620933]
[1768391821641,3.45343774,3283.7,3283.1,4.77620933]
[1768391821846,4.54723715,3283.6,3283.1,0.002]
[1768391822022,4.54723715,3283.6,3282.5,4.77620933]
[1768391822221,5.65184841,3283.5,3282.7,3.04622505]
[1768391822435,5.65184841,3283.5,3282.7,7.82043438]
[1768391822635,5.65184841,3283.5,3283.4,0.002]
[1768391822839,5.65184841,3283.5,3282.7,7.82043438]
[1768391822840,5.65184841,3283.5,3282.7,3.04622505]
[1768391823152,5.65184841,3283.5,3282.7,3.04626354]
[1768391823342,0.56518484,3283.4,3282.7,3.04626354]
[1768391823528,0.408,3283.3,3283.1,0.002]
[1768391823924,3.45373676,3283.3,3283.1,0.002]